lending/lending_fUSD_20240824
["ID","MTS","AMOUNT","RATE_DAILY","PERIOD"]
[335796276,1724494262404,-739.15,0.00018999,5]
[335796277,1724494262413,-739.15,0.00018999,5]
[335796278,1724494262424,-500.0,0.00018999,5]
[335796279,1724494262433,-500.0,0.00018999,5]
[335796280,1724494262444,-500.0,0.00018999,5]
[335796281,1724494262453,-500.0,0.00018999,5]
[335796282,1724494262465,-1207.62,0.00018999,5]
[335796283,1724494262475,-1207.62,0.00018999,5]
[335796284,1724494262485,-1207.62,0.00018999,5]
[335796285,1724494262494,-1207.62,0.00018999,5]
[335796286,1724494262503,-500.0,0.00018999,5]
[335796287,1724494262512,-499.2,0.00018999,5]
[335796288,1724494262522,-210.26,0.00018999,5]
[335796289,1724494262532,-1303.39,0.00018999,5]
[335796290,1724494262541,-1303.39,0.00018999,5]
[335796291,1724494262550,-1303.39,0.00018999,5]
[335796292,1724494262560,-1303.39,0.00018999,5]
[335796293,1724494262569,-1257.4,0.00018999,5]
[335796294,1724494262579,-1257.4,0.00018999,5]
[335796295,1724494262588,-1257.4,0.00018999,5]
[335796296,1724494262598,-561.51,0.00018999,5]
[335796297,1724494262607,-1257.4,0.00018999,5]
[335796298,1724494262616,-561.51,0.00018999,5]
[335796299,1724494262626,-561.51,0.00018999,5]
[335796300,1724494262636,-561.51,0.00018999,5]
[335796301,1724494262645,-500.0,0.00018999,5]
[335796302,1724494262659,-554.32726317,0.00018999,5]
[335796303,1724494262668,-724.73,0.00018999,5]
[335796304,1724494262678,-500.0,0.00018999,5]
[335796305,1724494262687,-724.73,0.00018999,5]
[335796306,1724494262696,-500.0,0.00018999,5]
[335796307,1724494262705,-724.73,0.00018999,5]
[335796308,1724494262715,-500.0,0.00018999,5]
[335796309,1724494262726,-724.73,0.00018999,5]
[335796310,1724494262735,-724.73,0.00018999,5]
[335796311,1724494262744,-574.95,0.00018999,5]
[335796312,1724494262753,-574.95,0.00018999,5]
[335796313,1724494262762,-574.95,0.00018999,5]
[335796314,1724494262772,-574.95,0.00018999,5]
[335796315,1724494262782,-500.0,0.00018999,5]
[335796316,1724494262791,-500.0,0.00018999,5]
[335796317,1724494262801,-500.0,0.00018999,5]
[335796318,1724494262810,-500.0,0.00018999,5]
[335796319,1724494262820,-500.0,0.00018999,5]
[335796320,1724494262829,-500.0,0.00018999,5]
[335796321,1724494262838,-500.0,0.00018999,5]
[335796322,1724494262847,-500.0,0.00018999,5]
[335796323,1724494262856,-500.0,0.00018999,5]
[335796324,1724494262865,-500.0,0.00018999,5]
[335796325,1724494262885,-500.0,0.00018999,5]
[335796326,1724494262894,-397.14,0.00018999,5]
[335796327,1724494262903,-500.0,0.00018999,5]
[335796328,1724494262912,-500.0,0.00018999,5]
[335796329,1724494262922,-500.0,0.00018999,5]
[335796330,1724494262931,-500.0,0.00018999,5]
[335796331,1724494262940,-500.0,0.00018999,5]
[335796332,1724494262949,-500.0,0.00018999,5]
[335796333,1724494262959,-500.0,0.00018999,5]
[335796334,1724494262968,-500.0,0.00018999,5]
[335796335,1724494262978,-504.43,0.00018999,5]
[335796336,1724494262988,-504.43,0.00018999,5]
[335796337,1724494262997,-504.43,0.00018999,5]
[335796338,1724494263007,-504.43,0.00018999,5]
[335796339,1724494263016,-500.0,0.00018999,5]
[335796340,1724494263025,-500.0,0.00018999,5]
[335796341,1724494263035,-500.0,0.00018999,5]
[335796342,1724494263044,-500.0,0.00018999,5]
[335796343,1724494263054,-544.4,0.00018999,5]
[335796344,1724494263064,-544.4,0.00018999,5]
[335796345,1724494263074,-544.4,0.00018999,5]
[335796346,1724494263083,-544.4,0.00018999,5]
[335796347,1724494263093,-612.48,0.00018999,5]
[335796348,1724494263102,-612.48,0.00018999,5]
[335796349,1724494263111,-612.48,0.00018999,5]
[335796350,1724494263121,-612.48,0.00018999,5]
[335796351,1724494263131,-500.0,0.00018999,5]
[335796352,1724494263140,-1017.08,0.00018999,5]
[335796353,1724494263150,-500.0,0.00018999,5]
[335796354,1724494263159,-1017.08,0.00018999,5]
[335796355,1724494263168,-500.0,0.00018999,5]
[335796356,1724494263178,-1017.08,0.00018999,5]
[335796357,1724494263188,-500.0,0.00018999,5]
[335796358,1724494263198,-1017.08,0.00018999,5]
[335796359,1724494263207,-500.0,0.00018999,5]
[335796360,1724494263216,-500.0,0.00018999,5]
[335796361,1724494263225,-500.0,0.00018999,5]
[335796362,1724494263235,-500.0,0.00018999,5]
[335796363,1724494263244,-855.69,0.00018999,5]
[335796364,1724494263254,-855.69,0.00018999,5]
[335796365,1724494263264,-855.69,0.00018999,5]
[335796366,1724494263273,-855.69,0.00018999,5]
[335796367,1724494263283,-2913.14,0.00018999,5]
[335796368,1724494263293,-676.4,0.00018999,5]
[335796369,1724494263302,-2913.14,0.00018999,5]
[335796370,1724494263312,-676.4,0.00018999,5]
[335796371,1724494263322,-2913.14,0.00018999,5]
[335796372,1724494263331,-676.4,0.00018999,5]
[335796373,1724494263340,-2913.14,0.00018999,5]
[335796374,1724494263350,-676.4,0.00018999,5]
[335796375,1724494263359,-16560.06,0.00018999,5]
[335796376,1724494263369,-16560.06,0.00018999,5]
[335796377,1724494263380,-16560.06,0.00018999,5]
[335796378,1724494263390,-16560.06,0.00018999,5]
[335796379,1724494263399,-500.0,0.00018999,5]
[335796380,1724494263411,-500.0,0.00018999,5]
[335796381,1724494263420,-500.0,0.00018999,5]
[335796382,1724494263431,-500.0,0.00018999,5]
[335796383,1724494263440,-1832.78,0.00018999,5]
[335796384,1724494263450,-1832.78,0.00018999,5]
[335796385,1724494263459,-1832.78,0.00018999,5]
[335796386,1724494263471,-1832.78,0.00018999,5]
[335796387,1724494263480,-900.04,0.00018999,5]
[335796388,1724494263490,-900.04,0.00018999,5]
[335796389,1724494263499,-900.04,0.00018999,5]
[335796390,1724494263508,-900.04,0.00018999,5]
[335796391,1724494263521,-500.0,0.00018999,5]
[335796392,1724494263531,-500.0,0.00018999,5]
[335796393,1724494263540,-443.37120732,0.00018999,5]
[335796394,1724494263551,-556.07,0.00018999,5]
[335796395,1724494263560,-556.07,0.00018999,5]
[335796396,1724494263569,-556.07,0.00018999,5]
[335796397,1724494263579,-556.07,0.00018999,5]
[335796398,1724494263588,-2000.0,0.00019,2]
[335796399,1724494263598,-1019.36405489,0.00019,2]
[335796400,1724494263608,-496.0,0.00019,2]
[335796401,1724494263618,-496.0,0.00019,2]
[335796402,1724494263627,-800.0,0.00019,2]
[335796403,1724494263637,-1040898.9613079,0.00019,2]
[335796404,1724494263646,-900.0,0.00019,2]
[335796405,1724494263660,-3507.5268276,0.00019,2]
[335796406,1724494263670,-25249.0624506,0.00019,2]
[335796407,1724494263679,-3512.4814502,0.00019,2]
[335796408,1724494263689,-1719.1681709,0.00019,2]
[335796409,1724494263700,-1000.0,0.00019,2]
[335796410,1724494263710,-500.0,0.00019025,5]
[335796411,1724494263720,-1562.67,0.00019025,5]
[335796412,1724494263731,-500.0,0.00019025,5]
[335796413,1724494263740,-504.43,0.00019025,5]
[335796414,1724494263750,-544.4,0.00019025,5]
[335796415,1724494263760,-900.04,0.00019025,5]
[335796416,1724494263770,-739.15,0.00019064,5]
[335796417,1724494263781,-612.48,0.00019064,5]
[335796418,1724494263791,-16560.06,0.00019064,5]
[335796419,1724494263801,-676.4,0.0001915,5]
[335796420,1724494263811,-11740.51,0.00019151,2]
[335796421,1724494263821,-500.0,0.00019165,5]
[335796422,1724494263831,-500.0,0.00019165,5]
[335796423,1724494263841,-855.69,0.00019165,5]
[335796424,1724494263851,-1832.78,0.00019165,5]
[335796425,1724494263861,-500.0,0.00019167,5]
[335796426,1724494263872,-3234.1,0.00019176,5]
[335796427,1724494263882,-500.0,0.00019176,5]
[335796428,1724494263892,-1303.39,0.00019176,5]
[335796429,1724494263902,-574.95,0.00019176,5]
[335796430,1724494263912,-315.53129347,0.00019176,5]
[335796431,1724494263921,-500.0,0.00019176,5]
[335796432,1724494263931,-543.31669115,0.00019176,5]
[335796433,1724494263941,-500.0,0.00019176,5]
[335796434,1724494263951,-2913.14,0.00019176,5]
[335796435,1724494263961,-500.0,0.00019177,5]
[335796436,1724494263972,-500.0,0.00019177,5]
[335796437,1724494263982,-500.0,0.00019177,5]
[335796438,1724494263993,-500.0,0.00019177,5]
[335796439,1724494264005,-500.0,0.00019177,5]
[335796440,1724494264016,-731.76,0.00019177,5]
[335796441,1724494264027,-500.0,0.00019177,5]
[335796442,1724494264038,-500.0,0.00019177,5]
[335796443,1724494264048,-517.62,0.00019177,5]
[335796444,1724494264059,-615.28678076,0.00019177,5]
[335796445,1724494264069,-498.56607346,0.00019177,5]
[335796446,1724494264079,-989.38,0.00019177,5]
[335796447,1724494264091,-622.67,0.00019177,5]
[335796448,1724494264102,-970.92,0.00019177,5]
[335796449,1724494264112,-790.0,0.00019177,5]
[335796450,1724494264125,-678.84,0.00019177,5]
[335796451,1724494264135,-500.0,0.00019177,5]
[335796452,1724494264146,-500.0,0.00019177,5]
[335796453,1724494264156,-690.27,0.00019177,5]
[335796454,1724494264166,-500.0,0.00019177,5]
[335796455,1724494264176,-627.2,0.00019177,5]
[335796456,1724494264187,-219.10391215,0.00019177,5]
[335796457,1724494264198,-500.0,0.00019177,5]
[335796458,1724494264208,-500.0,0.00019177,5]
[335796459,1724494264218,-1788.4,0.00019177,5]
[335796460,1724494264228,-500.0,0.00019177,5]
[335796461,1724494264239,-169.76477234,0.00019177,5]
[335796462,1724494264250,-824.92,0.00019177,5]
[335796463,1724494264260,-685.9,0.00019177,5]
[335796464,1724494264271,-3729.54,0.00019177,5]
[335796465,1724494264282,-778.68,0.00019177,5]
[335796466,1724494264292,-500.0,0.00019177,5]
[335796467,1724494264301,-561.26,0.00019177,5]
[335796468,1724494264311,-584.84,0.00019177,5]
[335796469,1724494264321,-500.0,0.00019177,5]
[335796470,1724494264336,-500.0,0.00019177,5]
[335796471,1724494264346,-1207.62,0.00019177,5]
[335796472,1724494264356,-1257.4,0.00019177,5]
[335796473,1724494264366,-561.51,0.00019177,5]
[335796474,1724494264377,-500.0,0.00019177,5]
[335796475,1724494264389,-162.94241,0.00019177,2]
[335796476,1724494264398,-1017.08,0.00019177,5]
[335796477,1724494264408,-338.1127133,0.00019177,5]
[335796478,1724494264418,-556.07,0.00019177,5]
[335796479,1724494264428,-1000.0,0.00019178,2]
[335796480,1724494264438,-1000.0,0.00019178,2]
[335796481,1724494264447,-1000.0,0.00019178,2]
[335796482,1724494264457,-1000.0,0.00019178,2]
[335796483,1724494264466,-1000.0,0.00019178,5]
[335796484,1724494264476,-1000.0,0.00019178,5]
[335796485,1724494264485,-1000.0,0.00019178,5]
[335796486,1724494264494,-1000.0,0.00019178,5]
[335796487,1724494264503,-947.63196044,0.00019178,5]
[335796488,1724494264513,-200.0,0.00019178,2]
[335796489,1724494264523,-200.0,0.00019178,2]
[335796490,1724494264532,-200.0,0.00019178,2]
[335796491,1724494264542,-200.0,0.00019178,2]
[335796492,1724494264551,-200.0,0.00019178,2]
[335796493,1724494264560,-200.0,0.00019178,2]
[335796494,1724494264569,-189.0,0.00019178,2]
[335796495,1724494264578,-22714.26,0.00019178,2]
[335796496,1724494264587,-3169.04,0.00019178,2]
[335796497,1724494264597,-60697.1,0.00019178,2]
[335796498,1724494264606,-500.0,0.00019179,5]
[335796499,1724494264615,-500.0,0.00019179,5]
[335796500,1724494264626,-500.0,0.00019179,5]
[335796501,1724494264636,-1033.97,0.00019179,5]
[335796502,1724494264646,-502.26046188,0.00019179,5]
[335796503,1724494264656,-500.0,0.00019179,5]
[335796504,1724494264666,-397.50046944,0.00019179,5]
[335796505,1724494264676,-500.0,0.00019179,5]
[335796506,1724494264686,-500.0,0.00019179,5]
[335796507,1724494264697,-500.0,0.00019179,5]
[335796508,1724494264706,-724.73,0.00019179,5]
[335796509,1724494264716,-152.0,0.00019185,5]
[335796510,1724494264725,-167.72,0.0001926,2]
[335796511,1724494264738,-150.0,0.0001926,2]
[335796512,1724494264748,-150.0,0.0001926,2]
[335796513,1724494264758,-245.0,0.000194,7]
[335796514,1724494264768,-620.0,0.000195,30]
[335796515,1724494264778,-1011.69406295,0.000195,2]
[335796516,1724494264788,-1000.0,0.000195,2]
[335796517,1724494264799,-500.0,0.00019521,2]
[335796518,1724494264810,-500.0,0.00019548,2]
[335796519,1724494264941,-314.84,0.0001965,2]
[335796520,1724494264952,-3162.0,0.00019706,2]
[335796521,1724494264962,-200.0,0.00019711,2]
[335796522,1724494264971,-150.0,0.0001973,10]
[335796523,1724494264981,-1000.48,0.0001975,2]
[335796524,1724494264992,-152.0,0.00019788,6]
[335796525,1724494265001,-1500.0,0.000198,2]
[335796526,1724494265011,-1500.0,0.000198,2]
[335796527,1724494265020,-1500.0,0.000198,2]
[335796528,1724494265029,-1500.0,0.000198,2]
[335796529,1724494265039,-1500.0,0.000198,2]
[335796530,1724494265048,-1500.0,0.000198,2]
[335796531,1724494265059,-1500.0,0.000198,2]
[335796532,1724494265068,-1762.16,0.000198,2]
[335796533,1724494265078,-1500.0,0.000198,2]
[335796534,1724494265089,-500.0,0.00019822,2]
[335796535,1724494265098,-500.0,0.00019856,5]
[335796536,1724494265108,-500.0,0.00019856,5]
[335796537,1724494265118,-1562.67,0.00019856,5]
[335796538,1724494265128,-739.15,0.00019856,5]
[335796539,1724494265137,-500.0,0.00019856,5]
[335796540,1724494265147,-504.43,0.00019856,5]
[335796541,1724494265157,-500.0,0.00019856,5]
[335796542,1724494265166,-544.4,0.00019856,5]
[335796543,1724494265176,-612.48,0.00019856,5]
[335796544,1724494265185,-500.0,0.00019856,5]
[335796545,1724494265195,-855.69,0.00019856,5]
[335796546,1724494265204,-676.4,0.00019856,5]
[335796547,1724494265213,-676.4,0.00019856,5]
[335796548,1724494265222,-676.4,0.00019856,5]
[335796549,1724494265232,-676.4,0.00019856,5]
[335796550,1724494265242,-676.60524813,0.00019856,5]
[335796551,1724494265251,-16560.06,0.00019856,5]
[335796552,1724494265260,-1832.78,0.00019856,5]
[335796553,1724494265270,-900.04,0.00019856,5]
[335796554,1724494265280,-73494.50622629,0.00019857,2]
[335796555,1724494265290,-982.58816738,0.0001989,2]
[335796556,1724494265300,-3234.1,0.00019898,5]
[335796557,1724494265310,-500.0,0.00019898,5]
[335796558,1724494265319,-1303.39,0.00019898,5]
[335796559,1724494265329,-574.95,0.00019898,5]
[335796560,1724494265338,-500.0,0.00019898,5]
[335796561,1724494265347,-500.0,0.00019898,5]
[335796562,1724494265356,-2913.14,0.00019898,5]
[335796563,1724494265365,-500.0,0.00019899,5]
[335796564,1724494265376,-500.0,0.00019899,5]
[335796565,1724494265385,-731.76,0.00019899,5]
[335796566,1724494265394,-500.0,0.00019899,5]
[335796567,1724494265403,-500.0,0.00019899,5]
[335796568,1724494265413,-517.62,0.00019899,5]
[335796569,1724494265423,-989.38,0.00019899,5]
[335796570,1724494265432,-970.92,0.00019899,5]
[335796571,1724494265442,-678.84,0.00019899,5]
[335796572,1724494265451,-500.0,0.00019899,5]
[335796573,1724494265460,-627.2,0.00019899,5]
[335796574,1724494265469,-500.0,0.00019899,5]
[335796575,1724494265479,-500.0,0.00019899,5]
[335796576,1724494265489,-824.92,0.00019899,5]
[335796577,1724494265499,-778.68,0.00019899,5]
[335796578,1724494265510,-500.0,0.00019899,5]
[335796579,1724494265521,-561.26,0.00019899,5]
[335796580,1724494265530,-584.84,0.00019899,5]
[335796581,1724494265539,-500.0,0.00019899,5]
[335796582,1724494265551,-1207.62,0.00019899,5]
[335796583,1724494265561,-561.51,0.00019899,5]
[335796584,1724494265571,-500.0,0.00019899,5]
[335796585,1724494265580,-1017.08,0.00019899,5]
[335796586,1724494265591,-556.07,0.00019899,5]
[335796587,1724494265601,-3889.14428646,0.000199,2]
[335796588,1724494265610,-4623.20292996,0.000199,3]
[335796589,1724494265619,-245.0,0.000199,7]
[335796590,1724494265629,-11567.59329674,0.000199,2]
[335796591,1724494265638,-11567.59329673,0.000199,2]
[335796592,1724494265648,-11567.59329673,0.000199,2]
[335796593,1724494265658,-2880.947049,0.00019986,2]
[335796594,1724494265669,-2886.2232566,0.00019986,2]
[335796595,1724494265679,-500.0,0.00019998,5]
[335796596,1724494265689,-500.0,0.00019998,5]
[335796597,1724494265699,-500.0,0.00019998,5]
[335796598,1724494265708,-622.67,0.00019998,5]
[335796599,1724494265718,-790.0,0.00019998,5]
[335796600,1724494265728,-500.0,0.00019998,5]
[335796601,1724494265739,-690.27,0.00019998,5]
[335796602,1724494265749,-500.0,0.00019998,5]
[335796603,1724494265758,-503.99488551,0.00019998,5]
[335796604,1724494265767,-1788.4,0.00019998,5]
[335796605,1724494265776,-685.9,0.00019998,5]
[335796606,1724494265786,-3729.54,0.00019998,5]
[335796607,1724494265796,-500.0,0.00019998,5]
[335796608,1724494265806,-3234.1,0.00019998,5]
[335796609,1724494265815,-500.0,0.00019998,5]
[335796610,1724494265825,-1303.39,0.00019998,5]
[335796611,1724494265834,-1257.4,0.00019998,5]
[335796612,1724494265843,-574.95,0.00019998,5]
[335796613,1724494265852,-500.0,0.00019998,5]
[335796614,1724494265862,-500.0,0.00019998,5]
[335796615,1724494265873,-2913.14,0.00019998,5]
[335796616,1724494265891,-500.0,0.00019999,5]
[335796617,1724494265901,-500.0,0.00019999,5]
[335796618,1724494265910,-500.0,0.00019999,5]
[335796619,1724494265919,-338.96,0.00019999,5]
[335796620,1724494265929,-500.0,0.00019999,5]
[335796621,1724494265938,-500.0,0.00019999,5]
[335796622,1724494265948,-324.80346222,0.00019999,5]
[335796623,1724494265958,-500.0,0.00019999,5]
[335796624,1724494265967,-500.0,0.00019999,5]
[335796625,1724494265977,-500.0,0.00019999,5]
[335796626,1724494265986,-500.0,0.00019999,5]
[335796627,1724494265996,-1033.97,0.00019999,5]
[335796628,1724494266006,-1033.97,0.00019999,5]
[335796629,1724494266016,-1033.97,0.00019999,5]
[335796630,1724494266026,-500.0,0.00019999,5]
[335796631,1724494266035,-500.0,0.00019999,5]
[335796632,1724494266045,-500.0,0.00019999,5]
[335796633,1724494266055,-500.0,0.00019999,5]
[335796634,1724494266064,-561.83417022,0.00019999,5]
[335796635,1724494266074,-500.0,0.00019999,5]
[335796636,1724494266083,-500.0,0.00019999,5]
[335796637,1724494266093,-731.76,0.00019999,5]
[335796638,1724494266103,-731.76,0.00019999,5]
[335796639,1724494266112,-500.0,0.00019999,5]
[335796640,1724494266125,-500.0,0.00019999,5]
[335796641,1724494266134,-248.09847218,0.00019999,5]
[335796642,1724494266145,-500.0,0.00019999,5]
[335796643,1724494266154,-310.91594044,0.00019999,5]
[335796644,1724494266164,-517.62,0.00019999,5]
[335796645,1724494266174,-517.62,0.00019999,5]
[335796646,1724494266183,-989.38,0.00019999,5]
[335796647,1724494266193,-989.38,0.00019999,5]
[335796648,1724494266202,-622.67,0.00019999,5]
[335796649,1724494266212,-622.67,0.00019999,5]
[335796650,1724494266221,-970.92,0.00019999,5]
[335796651,1724494266231,-970.92,0.00019999,5]
[335796652,1724494266241,-500.0,0.00019999,5]
[335796653,1724494266251,-500.0,0.00019999,5]
[335796654,1724494266260,-500.0,0.00019999,5]
[335796655,1724494266270,-790.0,0.00019999,5]
[335796656,1724494266279,-790.0,0.00019999,5]
[335796657,1724494266288,-678.84,0.00019999,5]
[335796658,1724494266298,-678.84,0.00019999,5]
[335796659,1724494266307,-500.0,0.00019999,5]
[335796660,1724494266316,-420.05,0.00019999,5]
[335796661,1724494266326,-500.0,0.00019999,5]
[335796662,1724494266336,-500.0,0.00019999,5]
[335796663,1724494266345,-690.27,0.00019999,5]
[335796664,1724494266355,-690.27,0.00019999,5]
[335796665,1724494266364,-500.0,0.00019999,5]
[335796666,1724494266376,-500.0,0.00019999,5]
[335796667,1724494266385,-627.2,0.00019999,5]
[335796668,1724494266395,-627.2,0.00019999,5]
[335796669,1724494266405,-500.0,0.00019999,5]
[335796670,1724494266414,-500.0,0.00019999,5]
[335796671,1724494266424,-500.0,0.00019999,5]
[335796672,1724494266434,-500.0,0.00019999,5]
[335796673,1724494266444,-1788.4,0.00019999,5]
[335796674,1724494266453,-1788.4,0.00019999,5]
[335796675,1724494266463,-500.0,0.00019999,5]
[335796676,1724494266473,-500.0,0.00019999,5]
[335796677,1724494266483,-685.9,0.00019999,5]
[335796678,1724494266492,-685.9,0.00019999,5]
[335796679,1724494266502,-824.92,0.00019999,5]
[335796680,1724494266512,-824.92,0.00019999,5]
[335796681,1724494266522,-3729.54,0.00019999,5]
[335796682,1724494266532,-3729.54,0.00019999,5]
[335796683,1724494266542,-778.68,0.00019999,5]
[335796684,1724494266551,-778.68,0.00019999,5]
[335796685,1724494266561,-500.0,0.00019999,5]
[335796686,1724494266570,-500.0,0.00019999,5]
[335796687,1724494266579,-561.26,0.00019999,5]
[335796688,1724494266589,-561.26,0.00019999,5]
[335796689,1724494266598,-500.0,0.00019999,5]
[335796690,1724494266608,-243.56489103,0.00019999,5]
[335796691,1724494266618,-584.84,0.00019999,5]
[335796692,1724494266627,-584.84,0.00019999,5]
[335796693,1724494266637,-500.0,0.00019999,5]
[335796694,1724494266647,-283.18,0.00019999,5]
[335796695,1724494266657,-3234.1,0.00019999,5]
[335796696,1724494266670,-3234.1,0.00019999,5]
[335796697,1724494266681,-3234.1,0.00019999,5]
[335796698,1724494266691,-1562.67,0.00019999,5]
[335796699,1724494266700,-3234.1,0.00019999,5]
[335796700,1724494266711,-1562.67,0.00019999,5]
[335796701,1724494266722,-3234.25969189,0.00019999,5]
[335796702,1724494266731,-1562.67,0.00019999,5]
[335796703,1724494266743,-1562.67,0.00019999,5]
[335796704,1724494266753,-1562.67,0.00019999,5]
[335796705,1724494266763,-1562.71,0.00019999,5]
[335796706,1724494266773,-500.0,0.00019999,5]
[335796707,1724494266782,-500.0,0.00019999,5]
[335796708,1724494266792,-739.15,0.00019999,5]
[335796709,1724494266801,-739.15,0.00019999,5]
[335796710,1724494266811,-454.27975992,0.00019999,5]
[335796711,1724494266820,-1207.62,0.00019999,5]
[335796712,1724494266831,-1207.62,0.00019999,5]
[335796713,1724494266840,-1303.39,0.00019999,5]
[335796714,1724494266850,-1303.39,0.00019999,5]
[335796715,1724494266859,-1303.39,0.00019999,5]
[335796716,1724494266870,-1303.39,0.00019999,5]
[335796717,1724494266880,-1303.51237379,0.00019999,5]
[335796718,1724494266890,-1257.4,0.00019999,5]
[335796719,1724494266899,-561.51,0.00019999,5]
[335796720,1724494266909,-1257.4,0.00019999,5]
[335796721,1724494266919,-561.51,0.00019999,5]
[335796722,1724494266928,-500.0,0.00019999,5]
[335796723,1724494266938,-724.73,0.00019999,5]
[335796724,1724494266948,-500.0,0.00019999,5]
[335796725,1724494266957,-724.73,0.00019999,5]
[335796726,1724494266967,-724.73,0.00019999,5]
[335796727,1724494266977,-574.95,0.00019999,5]
[335796728,1724494266987,-574.95,0.00019999,5]
[335796729,1724494266996,-574.95,0.00019999,5]
[335796730,1724494267007,-574.95,0.00019999,5]
[335796731,1724494267017,-575.15881571,0.00019999,5]
[335796732,1724494267027,-500.0,0.00019999,5]
[335796733,1724494267038,-500.0,0.00019999,5]
[335796734,1724494267047,-258.18,0.00019999,5]
[335796735,1724494267056,-500.0,0.00019999,5]
[335796736,1724494267066,-500.0,0.00019999,5]
[335796737,1724494267075,-500.0,0.00019999,5]
[335796738,1724494267085,-484.47090448,0.00019999,5]
[335796739,1724494267094,-504.43,0.00019999,5]
[335796740,1724494267103,-504.43,0.00019999,5]
[335796741,1724494267113,-504.43,0.00019999,5]
[335796742,1724494267123,-504.43,0.00019999,5]
[335796743,1724494267133,-504.43,0.00019999,5]
[335796744,1724494267142,-504.44875213,0.00019999,5]
[335796745,1724494267152,-500.0,0.00019999,5]
[335796746,1724494267161,-500.0,0.00019999,5]
[335796747,1724494267170,-500.0,0.00019999,5]
[335796748,1724494267180,-273.65670738,0.00019999,5]
[335796749,1724494267189,-544.4,0.00019999,5]
[335796750,1724494267198,-544.4,0.00019999,5]
[335796751,1724494267208,-544.4,0.00019999,5]
[335796752,1724494267218,-544.4,0.00019999,5]
[335796753,1724494267227,-544.4,0.00019999,5]
[335796754,1724494267237,-544.63589532,0.00019999,5]
[335796755,1724494267246,-612.48,0.00019999,5]
[335796756,1724494267255,-612.48,0.00019999,5]
[335796757,1724494267268,-1017.08,0.00019999,5]
[335796758,1724494267278,-500.0,0.00019999,5]
[335796759,1724494267287,-1017.08,0.00019999,5]
[335796760,1724494267406,-500.0,0.00019999,5]
[335796761,1724494267416,-500.0,0.00019999,5]
[335796762,1724494267426,-552.18772522,0.00019999,5]
[335796763,1724494267435,-257.04,0.00019999,5]
[335796764,1724494267445,-855.69,0.00019999,5]
[335796765,1724494267454,-855.69,0.00019999,5]
[335796766,1724494267464,-855.69,0.00019999,5]
[335796767,1724494267473,-855.69,0.00019999,5]
[335796768,1724494267483,-855.69,0.00019999,5]
[335796769,1724494267492,-855.69,0.00019999,5]
[335796770,1724494267502,-855.7886,0.00019999,5]
[335796771,1724494267511,-2913.14,0.00019999,5]
[335796772,1724494267521,-2913.14,0.00019999,5]
[335796773,1724494267531,-2913.14,0.00019999,5]
[335796774,1724494267541,-2913.14,0.00019999,5]
[335796775,1724494267551,-2913.2498,0.00019999,5]